Cogmind - Beta 9.6 @@@ ROGUE MODE // 2020.04.14 @ 09:26:15 Player: TBExtent Result: Destroyed by D-53 Grenadier with Mini Grenade Launcher Performance ------------- Evolutions (0) 0 Regions Visited (2) 400 Robots Destroyed (20) 100 Value Destroyed (384) 384 Prototype IDs (2) 40 Alien Tech Used (0) 0 Bonus (0) 0 TOTAL SCORE: 924 Bonus ------- None Cogmind --------- Core Integrity 0/250 Matter 138/300 Energy 94/100 System Corruption 2% Temperature Cool (0) Movement Core (1150) Ox22 Location -10/Mines Parts ------- > --- POWER (1) -------- (None) > --- PROPULSION (2) --- (None) > --- UTILITY (2) ------ High-capacity Storage Unit High-capacity Storage Unit > --- WEAPON (2) ------- EM Pulse Gun Assault Rifle > --- INVENTORY (20) --- High-capacity Storage Unit High-capacity Storage Unit High-capacity Storage Unit High-capacity Matter Pod (124) Hacking Suite EM Pulse Gun Assault Rifle Assault Rifle Assault Rifle Assault Rifle Assault Rifle Assault Rifle Datajack Datajack Hammer Peak State ------------ > --- POWER ------------ Light Nuclear Core > --- PROPULSION ------- Light Treads Light Treads > --- UTILITY ---------- High-capacity Storage Unit High-capacity Storage Unit > --- WEAPON ----------- Assault Rifle Assault Rifle > --- INVENTORY -------- Ion Engine Aluminum Leg High-capacity Storage Unit High-capacity Storage Unit High-capacity Storage Unit High-capacity Matter Pod Signal Interpreter EM Pulse Gun Medium Laser Assault Rifle Assault Rifle Assault Rifle Assault Rifle Assault Rifle Assault Rifle Assault Rifle Grenade Launcher Datajack Datajack Datajack [Rating: 11] Favorites ----------- Power Light Ion Engine Engine Light Ion Engine Power Core Light Nuclear Core Propulsion Light Treads Treads Light Treads Leg Aluminum Leg Utility High-capacity Storage Unit Storage High-capacity Storage Unit Processor Targeting Computer Weapon Assault Rifle Energy Gun EM Pulse Gun Ballistic Gun Assault Rifle Launcher Grenade Launcher Build | -11 -10 -10 ------- Run | Scr Mat Min Slots Evolved . | . . . Power . | . . . Propulsion . | . . . Utility . | . . . Weapon . | . . . Parts Attached 19 | 2 10 7 Power 2 | . 1 1 Engine 1 | . . 1 Core 1 | . 1 . Reactor . | . . . Propulsion 6 | 2 2 2 Treads 6 | 2 2 2 Leg . | . . . Wheel . | . . . Hover . | . . . Flight . | . . . Utility 5 | . 5 . Device . | . . . Storage 4 | . 4 . Processor 1 | . 1 . Hackware . | . . . Protection . | . . . Artifact . | . . . Weapon 6 | . 2 4 Energy Gun 2 | . 1 1 Energy Cannon . | . . . Ballistic Gun 2 | . 1 1 Ballistic Cannon . | . . . Launcher 2 | . . 2 Special Weapon . | . . . Impact Weapon . | . . . Slashing Weapon . | . . . Piercing Weapon . | . . . Special Melee Weapon . | . . . Unidentified Prototypes . | . . . Parts Lost 8 | . . 8 Power 2 | . . 2 Propulsion 4 | . . 4 Utility . | . . . Weapon 2 | . . 2 Highest Loss Streak 8 | . . 8 Average Slot Usage (%) 98 | . 99 88 Engine 7 | . 7 4 Core 6 | . 6 7 Treads 27 | . 27 23 Storage 23 | . 23 28 Processor 3 | . 4 . Energy Gun 2 | . 1 9 Ballistic Gun 25 | . 26 11 Naked Turns . | . . . Heaviest Build 74 | 11 73 74 Greatest Support 40 | 40 40 40 Greatest Overweight (x) 3 | . 3 1 Average Overweight (x) . | . . 1 Largest Inventory Capacity 20 | 6 20 20 Average Capacity 15 | 6 15 20 Most Carried 20 | 6 20 20 Average Carried 15 | 6 15 18 Final Capacity 20 | 6 20 20 Final Carried 20 | 6 20 15 Class Distribution -------------------- 55% | Hauler-Mutant 44% | Mutant Dominant Class ---------------- Hauler-Mutant | -10/Materials Hauler-Mutant | -10/Mines Resources | -11 -10 -10 ----------- Run | Scr Mat Min Matter Collected 654 | 220 434 . Remotely . | . . . Salvage Created 487 | . 474 13 Parts 39 | . 38 1 Haulers Intercepted 2 | . 2 . Recyclers Shooed . | . . . Parts Field Recycled . | . . . Retrieved Matter . | . . . Parts Self-Destructed . | . . . Prevented . | . . . Kills | -11 -10 -10 ------- Run | Scr Mat Min Combat Hostiles Destroyed 17 | . 13 4 Guns 14 | . 13 1 AOE 3 | . . 3 Classes Destroyed 6 | . 4 2 Hauler 2 | . 2 . Operator 1 | . 1 . Swarmer 6 | . 6 . Grunt 7 | . 7 . Demolisher 1 | . . 1 Assembled 3 | . . 3 Best Kill Streak 3 | . 3 3 Combat Bots Only 3 | . 3 3 Max Kills in Single Turn 2 | . 1 2 Gunslinging . | . . . Exploded 2 | . . 2 Melee . | . . . Uniques/NPCs Destroyed . | . . . Combat | -11 -10 -10 -------- Run | Scr Mat Min Damage Taken 1310 | . 455 855 Core 251 | . 99 152 Absorbed by Shields . | . . . Core Remaining (%) 100 | 100 . . Volleys Fired 58 | . 50 8 Largest 2 | . 2 2 Hottest 60 | . 60 60 Shots Fired 115 | . 100 15 Gun 112 | . 100 12 Cannon . | . . . Launcher 3 | . . 3 Special . | . . . Kinetic 104 | . 97 7 Thermal . | . . . Explosive 3 | . . 3 Electromagnetic 8 | . 3 5 Robot Hit Streak 9 | . 9 3 Robot Miss Streak 4 | . 2 4 Penetration Max . | . . . Secondary Targets 2 | . 2 . Max Gunslinging Chain 1 | . 1 . Shots Hit Robots 76 | . 70 6 Core Hits 39 | . 25 14 Critical Hits . | . . . Critical Kills . | . . . Critical Parts Destroyed . | . . . Melee Attacks . | . . . Impact . | . . . Slashing . | . . . Piercing . | . . . Sneak Attacks . | . . . Combat Hostiles . | . . . Follow-up Attacks . | . . . Damage Inflicted 1284 | . 852 432 Guns 924 | . 852 72 Cannons . | . . . Explosions 360 | . . 360 Melee . | . . . Ramming . | . . . Kinetic 853 | . 803 50 Thermal . | . . . Explosive 360 | . . 360 Electromagnetic 71 | . 49 22 Impact . | . . . Slashing . | . . . Piercing . | . . . Highest Corruption 2 | . 1 2 Average Corruption 1 | . 1 1 Corruption Purged . | . . . Effects 3 | . 3 . Message Errors 2 | . 2 . Energy Discharges 1 | . 1 . Overload Shots . | . . . Overflow Damage . | . . . Projectiles . | . . . Explosions . | . . . Melee . | . . . Knockbacks . | . . . Impact . | . . . Kinetic . | . . . Secondary . | . . . Self-Inflicted Damage 40 | . . 40 Shots 1 | . . 1 Rammed . | . . . Targets Rammed . | . . . Kicked . | . . . Crushed . | . . . Highest Temperature 8 | . 8 2 Average Temperature 3 | . 3 2 Received Heat Transfer 155 | . 135 20 Siege Activations . | . . . Robots Corrupted . | . . . Combat Hostiles . | . . . Parts Fried . | . . . Impact Corruptions . | . . . Robots Melted . | . . . Combat Hostiles . | . . . Parts Melted . | . . . Heat Transferred . | . . . Parts Sabotaged . | . . . Parts Stolen . | . . . Parts Stripped . | . . . Power Chain Reactions . | . . . Missiles Intercepted . | . . . Alert | -11 -10 -10 ------- Run | Scr Mat Min Peak Influence 207 | . 207 50 Average Influence 98 | . 104 25 Maximum Alert Level 1 | . 1 . Low Security (%) 98 | 100 98 100 Level 1 1 | . 1 . Level 2 . | . . . Level 3 . | . . . Level 4 . | . . . Level 5 . | . . . High Security . | . . . Max Security . | . . . Squads Dispatched 4 | . 4 . Investigation 3 | . 3 . Extermination . | . . . Reinforcement 1 | . 1 . Assault . | . . . Garrison . | . . . Intercept . | . . . Construction Impeded . | . . . Haulers Reinforced . | . . . Stealth | -11 -10 -10 --------- Run | Scr Mat Min Distress Signals . | . . . Communications Jammed . | . . . Distress Signals . | . . . Times Spotted 52 | . 31 21 Peak Tracking Total 18 | . 4 18 Tactical Retreats 3 | . 2 1 Traps | -11 -10 -10 ------- Run | Scr Mat Min Traps Triggered 3 | . 3 . Indirectly . | . . . Trap Hack Attempts . | . . . Triggered . | . . . Disarmed . | . . . Reprogrammed . | . . . Reused . | . . . Traps Extracted . | . . . Installed . | . . . Triggered . | . . . Machines | -11 -10 -10 ---------- Run | Scr Mat Min Machines Disabled . | . . . Max in Single Turn . | . . . Machines Sabotaged . | . . . Garrisons Compromised . | . . . Overloaded Fab Kills . | . . . Fab Network Shutdowns . | . . . Hacking | -11 -10 -10 --------- Run | Scr Mat Min Machines Accessed 9 | . 9 . Terminals 7 | . 7 . Fabricators . | . . . Repair Stations . | . . . Recycling Units 2 | . 2 . Scanalyzers . | . . . Garrison Access . | . . . Total Hacks 32 | . 32 . Successful 21 | . 21 . Failed 11 | . 11 . Catastrophic 1 | . 1 . Database Lockouts . | . . . Manual 18 | . 18 . Terminals 26 | . 26 . Fabricators . | . . . Repair Stations . | . . . Recycling Units 6 | . 6 . Scanalyzers . | . . . Garrison Access . | . . . Terminal Hacks 9 | . 9 . Prototype ID Bank 1 | . 1 . Terminal Index 1 | . 1 . Locate Traps 1 | . 1 . Recall Reinforcements 1 | . 1 . Registered Prototypes 1 | . 1 . Zone Layout 4 | . 4 . Fabricator Hacks . | . . . Repair Station Hacks . | . . . Recycling Unit Hacks 3 | . 3 . Report Inventory 2 | . 2 . Retrieve Components 1 | . 1 . Scanalyzer . | . . . Garrison Access Hacks . | . . . Unauthorized Hacks 9 | . 9 . Terminals 7 | . 7 . Track 1 | . 1 . Assimilate 2 | . 2 . Botnet 3 | . 3 . Operators 1 | . 1 . Fabricators . | . . . Repair Stations . | . . . Recycling Units 2 | . 2 . Tunnel 2 | . 2 . Scanalyzers . | . . . Garrison Access . | . . . Data Cores Recovered . | . . . Used . | . . . Hacking Detections 7 | . 7 . Full Trace Events . | . . . Feedback Events . | . . . Feedback Blocked . | . . . Robot Schematics Acquired . | . . . Robots Built . | . . . Matter . | . . . Time . | . . . Total Robot Build Rating . | . . . Part Schematics Acquired . | . . . Parts Built . | . . . Matter . | . . . Time . | . . . Total Part Build Rating . | . . . Parts Repaired . | . . . Time . | . . . Parts Recycled . | . . . Recycled Matter . | . . . Retrieved Matter . | . . . Retrieved Components 2 | . 2 . Parts Scanalyzed . | . . . Part Schematics Acquired . | . . . Parts Damaged . | . . . Bothacking | -11 -10 -10 ------------ Run | Scr Mat Min Used RIF Installer . | . . . Robots Hacked . | . . . Non-combat . | . . . Combat . | . . . Robot Hacks Applied . | . . . Relay Couplers Released . | . . . Robots Rewired . | . . . Allies Hacked . | . . . Hacks Repelled . | . . . Allies | -11 -10 -10 -------- Run | Scr Mat Min Total Allies 1 | . 1 . Largest Group 1 | . 1 . Highest-Rated Group 10 | . 10 . Highest-Rated Ally 10 | . 10 . Total Orders . | . . . Ally Attacks . | . . . Total Damage . | . . . Kills . | . . . Allies Corrupted . | . . . Allies Melted . | . . . Intel | -11 -10 -10 ------- Run | Scr Mat Min Robot Analysis Total . | . . . Derelict Logs Recovered 1 | . . 1 Drone Launches . | . . . Drone Recoveries . | . . . Exploration | -11 -10 -10 ------------- Run | Scr Mat Min Turns Passed 1419 | 7 1321 91 Spaces Moved 662 | 3 626 33 Core . | . . . Treads 662 | 3 626 33 Legs . | . . . Wheels . | . . . Hover . | . . . Flight . | . . . Fastest Speed 160 | 160 160 180 Average Speed 173 | 160 173 180 Slowest Speed 220 | 160 220 180 Overloaded Moves . | . . . Propulsion Burnouts . | . . . Robots Hopped . | . . . Cave-ins Triggered . | . . . Exploration Rate (%) 36 | 3 90 16 Regions Visited 2 Branch Regions 1 Pre-discovered Areas 3 | . 2 1 Known Exits Taken . | . . . Unknown Exits Taken 2 | 1 1 . Scrap Searched . | . . . Spaces Dug . | . . . Terrain Destroyed 24 | . . 24 Melee . | . . . Projectile . | . . . AOE 24 | . . 24 Actions | -11 -10 -10 --------- Run | Scr Mat Min Total 821 | 4 768 49 Wait 44 | . 44 . Move 660 | 2 625 33 Hop . | . . . Pick Up 25 | . 24 1 Fast Attach 6 | . 6 . Attach 6 | . . 6 Detach . | . . . Swap 7 | 2 4 1 Drop 15 | . 15 . Fire 58 | . 50 8 Melee . | . . . Ram . | . . . Kick . | . . . Crush . | . . . Escape Stasis . | . . . Rewire . | . . . Trap . | . . . Miscellaneous . | . . . Route ------- -11/Scrapyard -10/Materials (discovered 4 exits: [*Mat x2] / [*Min x2]) -10/Mines History --------- Turn | Location | Event 4 | -11/Scrapyard | Discovered new exit (range 3) 8 | -11/Scrapyard | Entered Materials 176 | -10/Materials | Discovered new exit (range 15) 251 | -10/Materials | Discovered new exit (range 9) 301 | -10/Materials | Build established: Mutant 489 | -10/Materials | Discovered new exit (range 16) 911 | -10/Materials | Build established: Hauler-Mutant 1037 | -10/Materials | Discovered new exit (range 6) 1329 | -10/Materials | Entered Mines 1346 | -10/Mines | Learned location of Zion (-6) 1374 | -10/Mines | Assembled infested the area 1379 | -10/Mines | Assisted by a Guerilla fighting off Assembled 1387 | -10/Mines | Core integrity fell below 50% 1413 | -10/Mines | Core integrity fell below 20% 1420 | -10/Mines | Destroyed by D-53 Grenadier with Mini Grenade Launcher Last Messages --------------- 01399_ as-18841 destroyed. 01399_ as-56743 destroyed. 01399_ as-50348 destroyed. 01399_ as-49964 destroyed. 01401_ as-22623 destroyed. 01401_ as-49448 destroyed. 01401_ as-35923 destroyed. 01401_ as-87083 destroyed. 01402_ The unstable cave ceiling collapses. 01405_ as-19116 destroyed. 01405_ as-39608 destroyed. 01410_ Ion Engine destroyed. 01411_ D-53 Grenadier destroyed. 01412_ The unstable cave ceiling collapses. 01414_ Lgt. Treads destroyed. 01414_ as-53819 destroyed. 01417_ The unstable cave ceiling collapses. 01417_ U-05 Engineer builds a Wall. 01418_ Lgt. Treads destroyed. 01419_ The unstable cave ceiling collapses. Map ----- +----------------------------------------------------+ | ?????????????????????????????????????????????????? | | ?????????????????????????????????????????????????? | | ?????????????????????????????????????????????????? | | ?????????????????????????????????????????????????? | | ?????????????????????????????????? ????????????? | | ?????????????????????????????????? ????????????? | | ????????????????????????????????? ?? ?????????? | | ?????????????????????????????????# ?? ?????????? | | ?????????????????????????????????# #?? ?????????? | | ?????????????????????????????????# #?? #????????? | | ?????????????????????????????????# #?# #????????? | | ?????????????????????????????????# #?# #????????? | | ?????????????????###?????????????# #?# #????????? | | ??????????????? #????????????# #?# #????????? | | ?????????????? #???????????# ### #????????? | | ?????????????? #?????????## ## #????????? | | ??????????????? ##??????## #????????? | | ???????????????? ###?#### #????????? | | ??????????????? ### ##???????? | | ??????????????????# #???????? | | ???????????????????# ## ## #???????? | | ???????????????????# # # ## ##??????? | | ???????????????????## u ### #??????? | | ???????????????????## #?## #??????? | | ???????????????????# #??#### #??????? | | ???????????????????# @ #?????## ##??????? | | ??????????????????# ##??????####???????? | | ????????????????# # ##??????????????????? | | ????????????????# #???????????????????? | | ????????????????# # ##???????????????????? | | ??????????????? # ##????????????????????? | | ????????????? d #?????????????????????? | | ???????????? !% # #?????????????????????? | | ???????????? ##?????????????????????? | | ????????? ##???????????????????????? | | ??????? % # ?????????????????????????? | | ???????? # ####?????????????????????????? | | ????????# #?????????????????????????????? | | ????????## ## ????????????????????????????????? | | ?????????##??????????????????????????????????????? | | ?????????????????????????????????????????????????? | | ?????????????????????????????????????????????????? | | ?????????????????????????????????????????????????? | | ?????????????????????????????????????????????????? | | ?????????????????????????????????????????????????? | | ?????????????????????????????????????????????????? | | | | | | | | | +----------------------------------------------------+ Best States ------------- Heat Dissipation 25 Energy Generation 14 Energy Capacity 250 Matter Stores 300 Matter Capacity 300 Sight Range 16 Terrain Scan Density 10 Evasion (%) 40 Targeting Accuracy 5 Recoil Reduction 2 Item Schematics ----------------- None Robot Schematics ------------------ None Fabricated ------------ Nothing Alien Tech Used ----------------- None Achievements -------------- None Challenges ------------ None Game ------ Seed RecyclingSwarmWings Manual? 0 Play Time 00:16:13 Cumulative 221.4 hours Start 2020.04.14 @ 09:11:48 End 2020.04.14 @ 09:26:15 Sessions 1 Manual Loads 0 Difficulty Rogue Special Mode None Game No. 126 Rogue 118 Adventurer 8 Explorer 0 Win Type - Total 10 Types 8/0/0/2/0/0/0 Lore% 75 Gallery% 76 Achievement% 64 Wizard Run 0 Options --------- ASCII 0 Keyboard 0 Movement Mouse Keybinds 0 Fullscreen 2 Font 14/SmallcapsGlow Map View 72x52 Tactical HUD 1 Map Filters NONE Filters NONE Steam 0 RUN: 2d165959-62bb-48dc-aedd-35a307a6a07b